lending/lending_fUSD_20250508
["ID","MTS","AMOUNT","RATE_DAILY","PERIOD"]
[360276026,1746690651733,-200.0,0.00025,2]
[360276027,1746690651743,-2500.000002,0.00025,5]
[360276028,1746690651752,-1763.93198087,0.00025,2]
[360276029,1746690651763,-1028.38079366,0.00025,2]
[360276030,1746690651773,-161.61834126,0.00025,2]
[360276031,1746690651783,-4083.89595129,0.00025,2]
[360276032,1746690651793,-15826.2672885,0.00025,3]
[360276033,1746690651803,-408.26013973,0.00025,3]
[360276034,1746690651813,-6041.02654326,0.00025,2]
[360276035,1746690651823,-400.0,0.00025,5]
[360276036,1746690651833,-100453.27672326,0.00025,2]
[360276037,1746690651843,-246.0,0.00025,5]
[360276038,1746690651855,-2940.02896452,0.00025,2]
[360276039,1746690651867,-3015.0,0.00025,2]
[360276040,1746690651877,-5550.0,0.00025,2]
[360276041,1746690651887,-150.0,0.00025,7]
[360276042,1746690651897,-1500.0,0.00025,5]
[360276043,1746690651908,-150.0,0.00025,2]
[360276044,1746690651918,-2000.0,0.00025,4]
[360276045,1746690651928,-450.0,0.00025,2]
[360276046,1746690651939,-224.103,0.00025,2]
[360276047,1746690651950,-3264.60891869,0.000251,2]
[360276048,1746690651961,-57127.31,0.000251,7]
[360276049,1746690651971,-239.84119403,0.00025151,2]
[360276050,1746690651981,-280.0,0.000253,10]
[360276051,1746690651991,-3838.28,0.000254,2]
[360276052,1746690652001,-2261.89627636,0.00025417,13]
[360276053,1746690652011,-1000.0,0.00025452,2]
[360276054,1746690652021,-1000.0,0.00025452,2]
[360276055,1746690652032,-207.12,0.00025478,2]
[360276056,1746690652042,-75915.4775421,0.00025586,2]
[360276057,1746690652052,-151.0,0.00025586,7]
[360276058,1746690652061,-151.0,0.00025586,7]
[360276059,1746690652071,-405.0,0.000256,3]
[360276060,1746690652081,-3292.0,0.00025809,2]
[360276061,1746690652091,-579.70090301,0.0002599,2]
[360276062,1746690652101,-920.0,0.00026,2]
[360276063,1746690652112,-1386.08,0.00026,2]
[360276064,1746690652123,-308.21991429,0.00026,2]
[360276065,1746690652133,-546.10714691,0.00026,3]
[360276066,1746690652143,-4366.59607129,0.00026,2]
[360276067,1746690652153,-1391.47488018,0.00026,10]
[360276068,1746690652163,-5562.0,0.00026,5]
[360276069,1746690652173,-4020.0,0.00026,2]
[360276070,1746690652183,-5529.37,0.00026,2]
[360276071,1746690652193,-2000.0,0.00026,4]
[360276072,1746690652203,-1000.0,0.00026031,2]
[360276073,1746690652214,-486.07,0.00026071,2]
[360276074,1746690652224,-2261.89627636,0.00026107,14]
[360276075,1746690652234,-352.43,0.00026325,2]
[360276076,1746690652244,-150.0,0.00026325,2]
[360276077,1746690652253,-30000.0,0.000265,5]
[360276078,1746690652265,-248.71531821,0.0002652,2]
[360276079,1746690652276,-230.26,0.00026522,2]
[360276080,1746690652287,-442.8751378,0.00026554,2]
[360276081,1746690652296,-2261.89627636,0.00026797,15]
[360276082,1746690652307,-207.12,0.00026848,2]
[360276083,1746690652317,-1000.0,0.00026879,2]
[360276084,1746690652328,-57127.31,0.000269,7]
[360276085,1746690652338,-151.0,0.000269,7]
[360276086,1746690652348,-163.825498,0.000269,7]
[360276087,1746690652358,-250.0,0.00027,2]
[360276088,1746690652368,-999.75610897,0.00027,2]
[360276089,1746690652378,-192.91851024,0.00027,2]
[360276090,1746690652388,-1882.76319764,0.00027,14]
[360276091,1746690652398,-239.239977,0.00027,2]
[360276092,1746690652409,-500.0,0.00027,2]
[360276093,1746690652419,-2000.0,0.00027,4]
[360276094,1746690652428,-150.0,0.00027118,2]
[360276095,1746690652438,-3553.22,0.00027123,2]
[360276096,1746690652448,-150.0,0.00027134,2]
[360276097,1746690652458,-2117.11,0.00027397,2]
[360276098,1746690652467,-2117.11,0.00027397,2]
[360276099,1746690652477,-2117.11,0.00027397,2]
[360276100,1746690652487,-2117.11,0.00027397,2]
[360276101,1746690652496,-2117.11,0.00027397,2]
[360276102,1746690652506,-2117.11,0.00027397,2]
[360276103,1746690652515,-2117.11,0.00027397,2]
[360276104,1746690652525,-2117.11,0.00027397,2]
[360276105,1746690652534,-2117.11,0.00027397,2]
[360276106,1746690652544,-2117.11,0.00027397,2]
[360276107,1746690652554,-2117.11,0.00027397,2]
[360276108,1746690652564,-2117.11,0.00027397,2]
[360276109,1746690652574,-2117.11,0.00027397,2]
[360276110,1746690652584,-2117.11,0.00027397,2]
[360276111,1746690652593,-2117.11,0.00027397,2]
[360276112,1746690652603,-2117.11,0.00027397,2]
[360276113,1746690652612,-2117.11,0.00027397,2]
[360276114,1746690652622,-2117.11,0.00027397,2]
[360276115,1746690652632,-2117.11,0.00027397,2]
[360276116,1746690652642,-2117.11,0.00027397,2]
[360276117,1746690652651,-2117.11,0.00027397,2]
[360276118,1746690652661,-2117.11,0.00027397,2]
[360276119,1746690652671,-2117.11,0.00027397,2]
[360276120,1746690652681,-2117.12781937,0.00027397,2]
[360276121,1746690652691,-1142.81,0.00027397,2]
[360276122,1746690652701,-1142.81,0.00027397,2]
[360276123,1746690652711,-1142.81,0.00027397,2]
[360276124,1746690652721,-1142.81,0.00027397,2]
[360276125,1746690652731,-1142.81,0.00027397,2]
[360276126,1746690652740,-1142.81,0.00027397,2]
[360276127,1746690652750,-1142.81,0.00027397,2]
[360276128,1746690652760,-1142.81,0.00027397,2]
[360276129,1746690652771,-1142.81,0.00027397,2]
[360276130,1746690652782,-1142.81,0.00027397,2]
[360276131,1746690652792,-1142.81,0.00027397,2]
[360276132,1746690652802,-1142.81,0.00027397,2]
[360276133,1746690652813,-1142.81,0.00027397,2]
[360276134,1746690652823,-1142.81,0.00027397,2]
[360276135,1746690652834,-1142.81,0.00027397,2]
[360276136,1746690652843,-1142.81,0.00027397,2]
[360276137,1746690652853,-1142.81,0.00027397,2]
[360276138,1746690652866,-1142.81,0.00027397,2]
[360276139,1746690652877,-1142.81,0.00027397,2]
[360276140,1746690652887,-1142.81,0.00027397,2]
[360276141,1746690652897,-1142.81,0.00027397,2]
[360276142,1746690652907,-1142.81,0.00027397,2]
[360276143,1746690652917,-1142.81,0.00027397,2]
[360276144,1746690652928,-1142.91110991,0.00027397,2]
[360276145,1746690652938,-450.0,0.00027397,2]
[360276146,1746690652948,-450.0,0.00027397,2]
[360276147,1746690652959,-450.0,0.00027397,2]
[360276148,1746690652969,-450.0,0.00027397,2]
[360276149,1746690652979,-450.0,0.00027397,2]
[360276150,1746690652990,-450.0,0.00027397,2]
[360276151,1746690653000,-450.0,0.00027397,2]
[360276152,1746690653010,-450.0,0.00027397,2]
[360276153,1746690653022,-450.0,0.00027397,2]
[360276154,1746690653032,-226.12692692,0.00027397,2]
[360276155,1746690653042,-450.0,0.00027397,2]
[360276156,1746690653052,-450.0,0.00027397,2]
[360276157,1746690653062,-450.0,0.00027397,2]
[360276158,1746690653072,-450.0,0.00027397,2]
[360276159,1746690653082,-450.0,0.00027397,2]
[360276160,1746690653091,-450.0,0.00027397,2]
[360276161,1746690653100,-164.20875828,0.00027397,2]
[360276162,1746690653110,-151.0,0.00027397,7]
[360276163,1746690653120,-171.992541,0.00027397,7]
[360276164,1746690653130,-500.12,0.00027397,2]
[360276165,1746690653140,-1912.17,0.00027397,2]
[360276166,1746690653149,-995.1,0.00027397,15]
[360276167,1746690653159,-326.29577223,0.00027397,2]
[360276168,1746690653169,-700.0,0.00027397,2]
[360276169,1746690653179,-1000.0,0.00027397,2]
[360276170,1746690653189,-300.0,0.00027397,2]
[360276171,1746690653200,-500.0,0.00027397,4]
[360276172,1746690653209,-152.40724221,0.00027397,5]
[360276173,1746690653219,-153.32403608,0.00027397,5]
[360276174,1746690653229,-650.0,0.000274,2]
[360276175,1746690653239,-500.0,0.000274,2]
[360276176,1746690653249,-2261.89627636,0.00027486,17]
[360276177,1746690653259,-150.0,0.00027495,2]
[360276178,1746690653270,-194.15537075,0.000275,2]
[360276179,1746690653280,-150.0,0.00027503,2]
[360276180,1746690653290,-3838.28,0.000277,2]
[360276181,1746690653300,-714.0,0.000278,4]
[360276182,1746690653310,-391.0,0.0002783,15]
[360276183,1746690653321,-150.0,0.00027848,2]
[360276184,1746690653331,-150.0,0.00027887,2]
[360276185,1746690653341,-257.91778498,0.00027889,2]
[360276186,1746690653351,-163.78282337,0.00027899,2]
[360276187,1746690653361,-3316.0,0.00027945,3]
[360276188,1746690653371,-5000.0,0.00027945,3]
[360276189,1746690653382,-1684.0,0.00027945,3]
[360276190,1746690653392,-1000.0,0.00027945,4]
[360276191,1746690653402,-150.0,0.00027959,2]
[360276192,1746690653412,-277.39,0.00028,2]
[360276193,1746690653422,-515.69046472,0.00028,2]
[360276194,1746690653432,-500.0,0.00028,2]
[360276195,1746690653443,-2713.976453,0.00028,2]
[360276196,1746690653453,-200.0,0.00028,2]
[360276197,1746690653463,-300.0,0.00028,2]
[360276198,1746690653473,-1813.91033666,0.00028,2]
[360276199,1746690653483,-201.6,0.00028,7]
[360276200,1746690653494,-2000.0,0.00028,4]
[360276201,1746690653504,-1000.0,0.00028006,2]
[360276202,1746690653513,-1386.08,0.000281,2]
[360276203,1746690653523,-152.0,0.00028125,3]
[360276204,1746690653534,-150.0,0.0002815,2]
[360276205,1746690653544,-1000.0,0.0002816,2]
[360276206,1746690653554,-3221.56835257,0.00028195,2]
[360276207,1746690653565,-150.0,0.00028195,2]
[360276208,1746690653575,-150.0,0.0002821,2]
[360276209,1746690653585,-207.12,0.00028218,2]
[360276210,1746690653595,-4609.0,0.00028247,2]
[360276211,1746690653606,-300.0,0.0002828,2]
[360276212,1746690653616,-486.07,0.00028335,2]
[360276213,1746690653626,-150.0,0.0002839,2]
[360276214,1746690653637,-1000.0,0.00028398,2]
[360276215,1746690653648,-181.76483614,0.00028434,2]
[360276216,1746690653658,-171.34235508,0.00028473,5]
[360276217,1746690653669,-150.0,0.00028487,2]
[360276218,1746690653679,-1364.82574228,0.00028493,4]
[360276219,1746690653689,-153.478101,0.000285,7]
[360276220,1746690653699,-57127.31,0.000285,7]
[360276221,1746690653710,-92245.72898626,0.000285,5]
[360276222,1746690653719,-151.0,0.000285,7]
[360276223,1746690653730,-151.0,0.000285,7]
[360276224,1746690653740,-1500.0,0.000285,2]
[360276225,1746690653750,-152.0,0.00028516,4]
[360276226,1746690653760,-150.0,0.0002856,2]
[360276227,1746690653770,-150.0,0.00028624,2]
[360276228,1746690653781,-150.0,0.00028634,2]
[360276229,1746690653791,-165.1036357,0.0002864,2]
[360276230,1746690653801,-150.0,0.0002867,2]
[360276231,1746690653812,-1000.0,0.0002871,2]
[360276232,1746690653822,-1000.0,0.0002875,8]
[360276233,1746690653833,-1912.17,0.00028767,2]
[360276234,1746690653843,-150.0,0.00028769,2]
[360276235,1746690653854,-1000.0,0.0002877,7]
[360276236,1746690653867,-1000.0,0.0002877,7]
[360276237,1746690653877,-1000.0,0.0002877,7]
[360276238,1746690653888,-442.8751378,0.00028772,2]
[360276239,1746690653898,-150.0,0.00028795,2]
[360276240,1746690653909,-1000.0,0.00028907,7]
[360276241,1746690653919,-1000.0,0.00028907,7]
[360276242,1746690653930,-1000.0,0.00028907,7]
[360276243,1746690653940,-152.0,0.00028907,5]
[360276244,1746690653951,-150.0,0.00028921,2]
[360276245,1746690653962,-150.0,0.0002893,2]
[360276246,1746690653972,-150.0,0.0002897,2]
[360276247,1746690653982,-150.0,0.00028981,2]
[360276248,1746690653992,-1060.58177651,0.00029,15]
[360276249,1746690654003,-260.47002967,0.00029,2]
[360276250,1746690654013,-160.0,0.00029,2]
[360276251,1746690654023,-37568.75567839,0.00029,2]
[360276252,1746690654034,-387.3131291,0.00029,6]
[360276253,1746690654045,-700.0,0.00029,2]
[360276254,1746690654056,-771.39663493,0.00029,2]
[360276255,1746690654071,-892.9576972,0.00029,5]
[360276256,1746690654082,-1500.0,0.00029,2]
[360276257,1746690654092,-200.0,0.00029,2]
[360276258,1746690654102,-2000.0,0.00029,4]
[360276259,1746690654112,-4020.0,0.00029,2]
[360276260,1746690654122,-550.0,0.00029,2]
[360276261,1746690654132,-1000.0,0.00029003,2]
[360276262,1746690654142,-1000.0,0.0002903,2]
[360276263,1746690654152,-1000.0,0.00029044,7]
[360276264,1746690654163,-1000.0,0.00029044,7]
[360276265,1746690654173,-1000.0,0.00029044,7]
[360276266,1746690654184,-530.66195779,0.00029066,2]
[360276267,1746690654194,-150.74482153,0.00029122,2]
[360276268,1746690654204,-150.0,0.00029152,2]
[360276269,1746690654215,-1000.0,0.00029181,7]
[360276270,1746690654224,-1000.0,0.00029181,7]
[360276271,1746690654234,-1000.0,0.00029181,7]
[360276272,1746690654244,-1000.0,0.00029184,2]
[360276273,1746690654254,-150.0,0.00029228,2]
[360276274,1746690654264,-988.66784334,0.0002923,2]
[360276275,1746690654274,-267.46074303,0.00029258,2]
[360276276,1746690654285,-150.0,0.00029272,2]
[360276277,1746690654296,-150.0,0.0002928,2]
[360276278,1746690654306,-229.02569593,0.00029293,2]
[360276280,1746690654316,-152.0,0.00029298,6]
[360276281,1746690654327,-7030.53333672,0.000293,5]
[360276282,1746690654479,-150.0,0.00029308,2]
[360276283,1746690654509,-150.0,0.00029309,2]
[360276284,1746690654519,-1000.0,0.00029318,7]
[360276285,1746690654531,-1000.0,0.00029318,7]
[360276286,1746690654541,-1000.0,0.00029318,7]
[360276287,1746690654551,-5177.34451748,0.0002936,5]
[360276288,1746690654561,-150.0,0.00029397,2]
[360276289,1746690654570,-1000.0,0.00029409,2]
[360276290,1746690654580,-150.0,0.00029421,2]
[360276291,1746690654590,-1000.0,0.00029455,7]
[360276292,1746690654600,-1000.0,0.00029455,7]
[360276293,1746690654611,-1000.0,0.00029455,7]
[360276294,1746690654622,-1069.91315102,0.000295,2]
[360276295,1746690654633,-1500.0,0.000295,2]
[360276296,1746690654643,-150.0,0.00029512,2]
[360276297,1746690654653,-150.0,0.00029533,2]
[360276298,1746690654662,-150.0,0.00029535,2]
[360276299,1746690654672,-150.0,0.00029571,2]
[360276300,1746690654682,-207.12,0.00029588,2]
[360276301,1746690654692,-802.85,0.00029588,2]
[360276302,1746690654702,-802.85,0.00029588,2]
[360276303,1746690654712,-802.85,0.00029588,2]
[360276304,1746690654722,-802.85,0.00029588,2]
[360276305,1746690654732,-802.85,0.00029588,2]
[360276306,1746690654742,-1751.45,0.00029588,2]
[360276307,1746690654752,-802.85,0.00029588,2]
[360276308,1746690654762,-802.85,0.00029588,2]
[360276309,1746690654772,-456.82,0.00029588,2]
[360276310,1746690654784,-802.85,0.00029588,2]
[360276311,1746690654793,-456.82,0.00029588,2]
[360276312,1746690654803,-456.82,0.00029588,2]
[360276313,1746690654814,-456.82,0.00029588,2]
[360276314,1746690654824,-802.85,0.00029588,2]
[360276315,1746690654834,-456.82,0.00029588,2]
[360276316,1746690654844,-802.85,0.00029588,2]
[360276317,1746690654854,-913.31,0.00029588,2]
[360276318,1746690654867,-798.48,0.00029588,2]
[360276319,1746690654877,-456.82,0.00029588,2]
[360276320,1746690654887,-456.82,0.00029588,2]
[360276321,1746690654897,-456.82,0.00029588,2]
[360276322,1746690654906,-456.82,0.00029588,2]
[360276323,1746690654916,-456.82,0.00029588,2]
[360276324,1746690654926,-308.81463457,0.00029589,2]
[360276325,1746690654937,-1000.0,0.00029592,7]
[360276326,1746690654947,-1000.0,0.00029592,7]
[360276327,1746690654957,-1000.0,0.00029592,7]
[360276328,1746690654967,-150.0,0.00029608,2]
[360276329,1746690654976,-150.0,0.0002961,2]
[360276330,1746690654987,-452.08,0.00029612,2]
[360276331,1746690654998,-150.0,0.00029635,2]
[360276332,1746690655023,-150.0,0.00029656,2]
[360276333,1746690655034,-150.0,0.00029664,2]
[360276334,1746690655045,-159.42971081,0.00029679,5]
[360276335,1746690655055,-1000.0,0.00029679,5]
[360276336,1746690655064,-152.0,0.0002969,7]
[360276337,1746690655074,-12000.0,0.000297,2]
[360276338,1746690655084,-1954.9843643,0.000297,2]
[360276339,1746690655094,-1000.0,0.00029729,7]
[360276340,1746690655104,-1000.0,0.00029729,7]
[360276341,1746690655113,-1000.0,0.00029729,7]
[360276342,1746690655123,-2838.50449297,0.00029752,2]
[360276343,1746690655134,-255.467,0.00029769,15]
[360276344,1746690655145,-150.0,0.00029791,2]
[360276345,1746690655156,-1000.0,0.0002981,2]
[360276346,1746690655166,-1000.0,0.00029814,2]
[360276347,1746690655175,-150.0,0.00029828,2]
[360276348,1746690655185,-150.0,0.00029835,2]
[360276349,1746690655196,-2000.0527,0.0002985,2]
[360276350,1746690655206,-2000.0,0.0002985,2]
[360276351,1746690655215,-988.6216,0.0002985,2]
[360276352,1746690655225,-2000.0,0.0002985,2]
[360276353,1746690655236,-1000.0,0.00029859,2]
[360276354,1746690655246,-1000.0,0.00029866,7]
[360276355,1746690655256,-855.0,0.00029866,7]
[360276356,1746690655266,-1000.0,0.00029866,7]
[360276357,1746690655276,-1000.0,0.00029866,7]
[360276358,1746690655287,-337.46071923,0.00029866,2]
[360276359,1746690655297,-150.0,0.00029892,2]
[360276360,1746690655307,-1386.08,0.000299,2]
[360276361,1746690655317,-155.02272503,0.000299,7]
[360276362,1746690655328,-57127.31,0.000299,7]
[360276363,1746690655337,-151.0,0.000299,7]
[360276364,1746690655348,-151.0,0.000299,7]
[360276365,1746690655358,-150.0,0.00029906,2]
[360276366,1746690655367,-1000.0,0.0002997,2]
[360276367,1746690655377,-1000.0,0.0002997,2]
[360276368,1746690655387,-1000.0,0.0002997,2]
[360276369,1746690655397,-1000.0,0.0002997,2]
[360276370,1746690655407,-1000.0,0.0002997,2]
[360276371,1746690655417,-1000.0,0.0002997,2]
[360276372,1746690655427,-1000.0,0.0002997,2]
[360276373,1746690655437,-1000.0,0.0002997,2]
[360276374,1746690655451,-1000.0,0.0002997,2]
[360276375,1746690655462,-500.0,0.0002997,2]
[360276376,1746690655472,-500.0,0.0002997,2]
[360276377,1746690655482,-500.0,0.0002997,2]
[360276378,1746690655492,-500.0,0.0002997,2]
[360276379,1746690655502,-500.0,0.0002997,2]
[360276380,1746690655512,-500.0,0.0002997,2]
[360276381,1746690655522,-1917.30519051,0.0002997,2]
[360276382,1746690655533,-1000.0,0.0002997,2]
[360276383,1746690655542,-500.0,0.0002997,2]
[360276384,1746690655553,-374.21211796,0.0002997,2]
[360276385,1746690655997,-1155.27,0.000201,2]
[360276386,1746690656008,-22.98700784,0.000201,2]
[360276387,1746690656030,-681.87299216,0.000201,2]
[360276388,1746690656042,-452.08,0.000201,2]
[360276389,1746690656052,-1000.0,0.000202,2]
[360276390,1746690656062,-2261.89627636,0.00028176,18]
[360276391,1746690656071,-442.29084065,0.00028866,19]
[360276392,1746690656092,-447.28989769,0.00028866,19]
[360276393,1746690656104,-933.10577301,0.00028866,19]
[360276394,1746690656406,-156.211688,0.0002,2]
[360276395,1746690656415,-439.20976501,0.00028866,19]
[360276396,1746690656425,-2261.89627636,0.00029555,21]
[360276397,1746690656435,-514.52065923,0.0002997,2]
[360276398,1746690656444,-150.0,0.00029983,2]
[360276399,1746690656453,-150.0,0.00029987,2]
[360276400,1746690656463,-186.5616114,0.0002999,2]
[360276401,1746690656487,-42.83947265,0.0002999,2]
[360276402,1746690656497,-217.45618303,0.0003,7]
[360276403,1746690656512,-26.73241499,0.0003,2]
[360276404,1746690656523,-442.17015754,0.0003,2]
[360276405,1746690656535,-1754.60864244,0.0003,2]
[360276406,1746690656545,-1049.87491312,0.0003,10]
[360276407,1746690656554,-1549.19090241,0.0003,2]
[360276408,1746690656564,-963.34550202,0.0003,2]
[360276409,1746690656574,-160.99064888,0.0003,2]
[360276410,1746690656583,-208.2,0.0003,2]
[360276411,1746690656593,-300.0,0.0003,5]
[360276412,1746690656602,-1000.0,0.0003,6]
[360276413,1746690656613,-300.0,0.0003,2]
[360276414,1746690656623,-159.22476937,0.0003,10]
[360276415,1746690656632,-460.47,0.0003,2]
[360276416,1746690656642,-150.0,0.0003,2]
[360276417,1746690656652,-150.0,0.0003,2]
[360276418,1746690656662,-931.92446422,0.0003,2]
[360276419,1746690656673,-992.85,0.0003,2]
[360276429,1746690749036,3316.98355362,0.0003,120]
[360276444,1746690838357,166.94691456,0.000299,30]
[360276445,1746690838421,161.17529979,0.000299,30]
[360276446,1746690838531,167.57984056,0.000299,30]
[360276453,1746690878613,190.32284,0.0003,45]
[360276457,1746690900706,1333.0,0.00029041,120]
[360276490,1746691090249,500.0,0.0003,30]
[360276497,1746691159904,150.0,0.0003,30]
[360276499,1746691170166,1215.92300767,0.00030136,120]
[360276518,1746691293037,200.17,0.00030137,120]
[360276527,1746691400954,500.0,0.0003,30]
[360276530,1746691632742,200.0,0.0003,30]
[360276531,1746691634790,200.0,0.0003,30]
[360276532,1746691635974,504.0,0.0003,30]
[360276533,1746691686606,1333.0,0.00029041,120]
[360276534,1746691768630,-546.84828793,0.00019796,2]
[360276535,1746691768652,-500.0,0.00019796,2]
[360276536,1746691768674,-250.0,0.00019797,2]
[360276537,1746691768695,-546.84828793,0.00019797,2]
[360276538,1746691768717,-250.0,0.00019816,2]
[360276539,1746691768738,-200.0,0.00019845,2]
[360276540,1746691768760,-1200.0,0.00019895,2]
[360276541,1746691768783,-300.0,0.00019895,2]
[360276542,1746691768809,-206.30342414,0.00019895,2]
[360276543,1746691777231,-93.69657586,0.00019895,2]
[360276544,1746691777255,-3906.30342414,0.00019896,2]
[360276562,1746691832419,-300.0,0.00019896,2]
[360276563,1746691832429,-1200.0,0.00019896,2]
[360276564,1746691832439,-300.0,0.00019896,2]
[360276565,1746691832450,-1122.69657586,0.00019896,2]
[360276566,1746691832460,-250.0,0.00019896,2]
[360276567,1746691832470,-200.0,0.00019896,2]
[360276568,1746691832480,-200.0,0.00019896,2]
[360276569,1746691832489,-250.0,0.00019897,2]
[360276570,1746691832499,-1681.7043234,0.00019897,2]
[360276571,1746691832510,-351.92574701,0.00019897,2]
[360276572,1746691832538,-14771.70162959,0.00019897,2]
[360276573,1746691832548,-295.4624,0.00019897,2]
[360276574,1746691832558,-200.0,0.00019897,2]
[360276575,1746691832568,-4409.7645,0.00019899,2]
[360276576,1746691832578,-2551.88636208,0.00019965,2]
[360276577,1746691832588,-151.0,0.00019987,2]
[360276578,1746691832597,-850.0,0.00019998,2]
[360276579,1746691832607,-2352.77093375,0.00019999,2]
[360276580,1746691832619,-331.14851368,0.00019999,2]
[360276581,1746691832631,-954.32539519,0.00019999,2]
[360276582,1746691832691,-736.159057,0.00019999,2]
[360276583,1746691832703,-439.90913781,0.00019999,2]
[360276584,1746691832713,-12500.0,0.00019999,2]
[360276585,1746691832724,-4063.08564466,0.00019999,2]
[360276586,1746691832734,-248.382304,0.0002,2]
[360276587,1746691832744,-500.0,0.00020508,2]
[360276588,1746691832754,-500.0,0.00020508,2]
[360276589,1746691832764,-500.0,0.00020508,2]
[360276590,1746691832774,-500.0,0.00020508,2]
[360276591,1746691832783,-500.0,0.00020508,2]
[360276592,1746691832794,-151.25827335,0.00020582,2]
[360276593,1746691832804,-207.4,0.00020582,2]
[360276594,1746691832814,-375.42285063,0.00020582,2]
[360276595,1746691832826,-293.22900694,0.00020582,2]
[360276596,1746691832836,-500.0,0.000208,2]
[360276597,1746691832846,-398.56,0.00020899,2]
[360276598,1746691832856,-1018.62478851,0.000209,4]
[360276601,1746691832888,-706.91205374,0.000209,4]
[360276603,1746691832898,-1996.022,0.0002099,2]
[360276606,1746691832907,-1142.0,0.0002099,2]
[360276607,1746691832917,-304.59,0.00020999,2]
[360276609,1746691832927,-797.0,0.00021,2]
[360276612,1746691832936,-24.59080542,0.0002113,2]
[360276668,1746691838712,-405.23590806,0.0002113,2]
[360276669,1746691838762,-238.82514409,0.0002113,2]
[360276670,1746691838772,-420.0,0.00021667,2]
[360276671,1746691838783,-1680.0,0.00021771,2]
[360276672,1746691838794,-200.0,0.00021886,2]
[360276673,1746691838804,-200.0,0.00021886,2]
[360276674,1746691838813,-250.0,0.00021886,2]
[360276675,1746691838823,-215.0738,0.00021951,2]
[360276676,1746691838833,-200.0,0.00023,2]
[360276677,1746691838844,-398.56,0.00023162,2]
[360276678,1746691838854,-223.0315306,0.0002332,2]
[360276679,1746691838863,-1000.0,0.0002342,2]
[360276680,1746691838873,-2495.47,0.00023495,2]
[360276681,1746691838883,-587.0,0.00023595,2]
[360276682,1746691838893,-17979.49,0.00023751,2]
[360276683,1746691838902,-414.0,0.00023783,2]
[360276684,1746691838912,-2351.0,0.00023823,2]
[360276685,1746691838922,-1355.49,0.00023836,2]
[360276686,1746691838932,-414.0,0.00024028,2]
[360276687,1746691838943,-414.0,0.00024273,2]
[360276688,1746691838954,-414.0,0.00024518,2]
[360276689,1746691838964,-504.3122772,0.00024518,2]
[360276690,1746691838974,-1000.0,0.00024658,2]
[360276691,1746691838984,-4000.0,0.00024658,2]
[360276692,1746691838994,-231.28369723,0.00024689,2]
[360276693,1746691839004,-414.0,0.00024764,2]
[360276694,1746691839014,-200.0,0.000248,2]
[360276695,1746691839024,-414.0,0.00025009,2]
[360276696,1746691839034,-414.0,0.00025254,2]
[360276697,1746691839044,-300.0,0.00025263,2]
[360276698,1746691839054,-280.0,0.000253,10]
[360276699,1746691839064,-398.56,0.00025426,2]
[360276700,1746691839078,-823.0,0.00025695,2]
[360276701,1746691839090,-1000.0,0.00025988,2]
[360276702,1746691839101,-153.33398973,0.00025988,2]
[360276703,1746691839111,-1000.0,0.00025988,2]
[360276705,1746691839120,-239.84119403,0.00026058,2]
[360276706,1746691839131,-3292.0,0.00026068,2]